bitfinex-derivatives/quotes_SOLF0:USTF0_20250823
["timestamp","ask_amount","ask_price","bid_price","bid_amount"]
[1755924807515,2.7,203.91,203.7,24.5557]
[1755924807720,2.7,203.91,203.71,4.47062112]
[1755924807916,2.7,203.91,203.72,4.47062112]
[1755924808114,2.7,203.91,203.73,4.47062112]
[1755924808313,2.7,203.91,203.7,24.5557]
[1755924808519,2.7,203.91,203.71,33.93467578]
[1755924808717,2.7,203.91,203.72,4.46897578]
[1755924809017,2.7,203.91,203.75,4.9098]
[1755924809210,2.7,203.91,203.67,140.86]
[1755924809211,14.72,203.91,203.53,251.03661167]
[1755924809415,2.7,203.88,203.67,1.96823884]
[1755924809615,29.4415,203.88,203.68,29.4699]
[1755924809921,2.7,203.87,203.68,4.9116]
[1755924810324,29.4441,203.86,203.68,4.9116]
[1755924810516,2.7,203.85,203.66,327.18]
[1755924811820,2.7,203.84,203.67,24.5593]
[1755924812521,332.5,203.89,203.71,24.5544]
[1755924812916,332.5,203.89,203.75,24.5498]
[1755924813118,332.5,203.89,203.74,24.5507]
[1755924813313,253.16640701,204.11,203.74,24.5507]
[1755924813314,2.75,203.94,203.74,24.5507]
[1755924813523,2.75,203.94,203.82,4.9081]
[1755924813819,2.75,204.0,203.81,24.5425]
[1755924814227,2.75,204.0,203.84,29.4467]
[1755924814520,2.75,204.0,203.84,4.9077]
[1755924815520,2.75,204.0,203.75,24.5492]
[1755924815725,2.75,204.0,203.76,138.34]
[1755924816414,2.75,204.0,203.81,24.5423]
[1755924817525,2.75,204.0,203.88,4.9066]
[1755924818626,329.84,204.04,203.9,4.9061]
[1755924819016,329.84,204.04,203.87,4.9069]
[1755924819625,329.84,204.04,203.89,4.9064]
[1755924819822,2.75,204.06,203.89,4.9064]
[1755924821728,2.75,204.06,203.91,4.9056]
[1755924821928,2.75,204.06,203.87,24.5351]
[1755924822127,2.75,204.06,203.88,4.41862354]
[1755924822325,2.75,204.06,203.96,4.9044]
[1755924822927,2.75,204.11,203.96,4.9044]
[1755924823222,2.75,204.11,203.93,4.9052]
[1755924823929,2.75,204.08,203.93,4.9052]
[1755924824529,2.75,204.08,203.93,2.4052]
[1755924825030,2.75,204.06,203.9,4.9058]
[1755924825831,2.75,204.06,203.9,24.5298]
[1755924826727,2.75,204.06,203.94,4.9049]
[1755924827127,2.75,204.06,203.91,4.9055]
[1755924827329,2.75,204.06,203.9,24.5298]
[1755924827530,2.75,204.13,203.91,28.94527005]
[1755924827830,2.75,204.08,203.86,9.8139]
[1755924828031,2.75,204.08,203.87,4.4173759]
[1755924828332,2.75,204.08,203.9,24.5296]
[1755924828529,2.75,204.08,203.9,22.0296]
[1755924829222,4.9019,204.07,203.92,4.9053]
[1755924829427,4.9019,204.07,203.91,24.5287]
[1755924829629,2.75,204.06,203.91,24.5287]
[1755924829828,2.75,204.06,203.92,24.5272]
[1755924831535,2.75,204.06,203.96,4.9044]
[1755924833630,2.75,204.06,203.93,4.905]
[1755924833838,2.75,204.06,203.93,3.095]
[1755924834336,7.6521,204.06,203.93,2.405]
[1755924835733,4.9026,204.04,203.93,2.405]
[1755924836738,4.903,204.02,203.9,4.9057]
[1755924837033,2.75,204.01,203.86,24.5337]
[1755924838137,2.75,204.01,203.89,4.9059]
[1755924838436,2.75,204.01,203.87,24.5332]
[1755924838832,2.75,204.01,203.88,4.40940185]
[1755924839034,2.75,204.01,203.73,255.3357]
[1755924839236,2.75,204.01,203.81,4.41137427]
[1755924839538,4.904,203.98,203.87,4.9066]
[1755924839739,2.75,203.97,203.78,24.5435]
[1755924839931,2.75,203.96,203.81,4.4140245]
[1755924840131,4.9049,203.95,203.83,4.9076]
[1755924840330,2.75,203.96,203.75,24.547]
[1755924840536,2.75,203.92,203.76,4.42165853]
[1755924840738,2.75,203.92,203.77,4.42165853]
[1755924841036,2.75,203.92,203.78,4.42165853]
[1755924841242,4.9057,203.91,203.8,4.9083]
[1755924841440,2.75,203.9,203.7,9.99327854]
[1755924841638,2.75,203.9,203.71,4.42541151]
[1755924841835,2.75,203.91,203.72,4.42541151]
[1755924842140,2.75,203.91,203.73,4.42541151]
[1755924842340,2.75,203.91,203.74,4.42541151]
[1755924842540,2.75,203.91,203.75,4.42541151]
[1755924842741,2.75,203.91,203.76,4.42541151]
[1755924842940,2.75,203.91,203.75,4.9093]
[1755924843143,2.75,203.91,203.76,4.42299097]
[1755924843343,4.9059,203.9,203.77,4.909]
[1755924844146,4.9065,203.88,203.74,4.9096]
[1755924844347,2.64,203.87,203.75,4.42390589]
[1755924844547,2.64,203.87,203.69,24.5549]
[1755924844748,2.64,203.87,203.7,4.42478145]
[1755924844942,27.1737,203.87,203.71,9.33508145]
[1755924845241,2.64,203.87,203.72,4.42478145]
[1755924845437,2.64,203.87,203.73,4.42478145]
[1755924845643,2.64,203.92,203.74,6.26203884]
[1755924845838,140.24,203.96,203.75,16.25496]
[1755924846043,354.1562,204.02,203.75,16.25496]
[1755924846044,4.9037,204.0,203.86,4.9068]
[1755924847350,2.64,203.97,203.83,4.9074]
[1755924847649,2.64,203.97,203.84,4.42234848]
[1755924847851,7.5444,203.97,203.85,2.49234848]
[1755924848050,7.5444,203.97,203.83,4.9074]
[1755924848550,2.64,203.97,203.78,24.544]
[1755924848752,2.64,203.97,203.79,6.12403676]
[1755924849050,2.64,203.97,203.8,1.83811969]
[1755924849346,2.64,203.97,203.83,24.5381]
[1755924849547,2.64,203.97,203.8,24.5415]
[1755924850151,4.9045,203.96,203.81,24.5405]
[1755924850950,2.64,203.97,203.74,24.5487]
[1755924850951,2.64,203.93,203.74,24.5487]
[1755924851154,9.99327854,203.92,203.75,1.83882375]
[1755924851452,34.52087854,203.92,203.78,4.9088]
[1755924851752,4.9066,203.88,203.73,22.0503]
[1755924852248,4.9066,203.88,203.77,4.909]
[1755924852654,4.9066,203.88,203.73,22.0503]
[1755924852847,2.64,203.87,203.73,22.0503]
[1755924853153,4.9069,203.86,203.74,4.9096]
[1755924854151,2.64,203.87,203.72,24.5514]
[1755924854352,2.64,203.93,203.73,1.84137476]
[1755924854556,2.64,203.93,203.74,6.13303127]
[1755924854754,2.64,203.93,203.75,6.13303127]
[1755924855054,2.64,203.93,203.76,1.84137476]
[1755924855353,2.64,203.93,203.79,24.5426]
[1755924855557,2.64,203.93,203.74,24.5491]
[1755924855947,7.5453,203.93,203.81,4.9081]
[1755924857450,2.64,203.93,203.83,4.9075]
[1755924857651,2.64,203.93,203.79,24.543]
[1755924857846,2.64,203.93,203.8,1.84283515]
[1755924858049,2.64,203.98,203.81,26.38307902]
[1755924858253,4.9043,203.97,203.85,4.9071]
[1755924859548,4.9043,203.97,203.81,24.5404]
[1755924859549,2.64,203.94,203.82,4.9077]
[1755924859952,2.64,203.94,203.83,4.41340968]
[1755924860147,2.64,203.94,203.82,2.4077]
[1755924860351,2.64,203.94,203.84,4.9074]
[1755924860852,4.9052,203.93,203.79,24.543]
[1755924861056,4.9052,203.93,203.8,4.41385112]
[1755924861256,4.9052,203.93,203.81,4.41385112]
[1755924861453,4.9052,203.93,203.79,24.543]
[1755924861650,4.9052,203.93,203.8,9.32188153]
[1755924861851,2.64,203.92,203.8,4.9082]
[1755924862055,2.64,203.91,203.73,24.5497]
[1755924862255,2.64,203.91,203.77,4.9088]
[1755924862454,2.64,203.91,203.74,24.5491]
[1755924862752,4.9064,203.88,203.74,24.5491]
[1755924862956,2.64,203.91,203.8,4.9083]
[1755924864556,7.5459,203.91,203.8,4.9083]
[1755924864757,2.64,203.91,203.75,24.5475]
[1755924864959,2.64,203.91,203.78,24.5442]
[1755924865257,2.64,203.91,203.81,0.03157007]
[1755924866552,4.9065,203.88,203.77,4.9089]
[1755924866758,2.64,203.87,203.77,4.9089]
[1755924867054,2.64,203.95,203.86,4.9067]
[1755924867456,2.64,203.95,203.79,24.5429]
[1755924867857,0.03099298,203.93,203.79,24.5429]
[1755924868361,2.64,203.95,203.79,24.5429]
[1755924868563,0.03188614,203.88,203.85,4.9071]
[1755924870361,0.03188614,203.88,203.82,4.9076]
[1755924870559,0.03188614,203.88,203.74,9.8193]
[1755924870763,0.03188614,203.88,203.75,30.70220049]
[1755924870961,2.64,203.9,203.76,6.15450049]
[1755924871262,0.03405056,203.84,203.75,24.5477]
[1755924871461,0.03405056,203.84,203.76,6.15535141]
[1755924871664,0.03405056,203.84,203.75,24.5477]
[1755924871665,0.03405056,203.84,203.79,4.9084]
[1755924873563,0.03405056,203.84,203.81,4.9081]
[1755924873763,0.03405056,203.84,203.74,9.8193]
[1755924874062,0.03405056,203.84,203.78,4.9086]
[1755924874262,0.03405056,203.84,203.79,4.43586434]
[1755924874564,0.03405056,203.84,203.76,24.5464]
[1755924874767,0.03405056,203.84,203.77,4.43622184]
[1755924874966,0.03405056,203.84,203.78,4.43622184]
[1755924875162,0.03405056,203.84,203.76,24.5464]
[1755924875362,0.03405056,203.84,203.77,4.4381148]
[1755924875669,0.03405056,203.84,203.8,4.9083]
[1755924876068,0.03405056,203.84,203.81,4.9079]
[1755924876368,0.03405056,203.84,203.76,24.5464]
[1755924876570,0.03405056,203.84,203.77,6.28609016]
[1755924876875,0.03405056,203.84,203.78,4.4388049]
[1755924877167,0.03405056,203.84,203.79,4.4388049]
[1755924877368,0.03405056,203.84,203.8,4.4388049]
[1755924877564,0.03405056,203.84,203.82,4.9076]
[1755924878368,0.03405056,203.84,203.83,4.44114981]
[1755924881569,0.03405056,203.84,203.83,6.29193255]
[1755924883262,0.03405056,203.84,203.83,1.85078274]
[1755924883468,0.03405056,203.84,203.83,10.62753133]
[1755924884167,0.03405056,203.84,203.83,10.62753341]
[1755924884567,0.03405056,203.84,203.83,6.30112468]
[1755924885465,0.03405056,203.84,203.83,4.44944986]
[1755924886571,0.03405056,203.84,203.83,6.30191202]
[1755924887375,0.03405056,203.84,203.83,1.94944986]
[1755924889671,0.03405056,203.84,203.78,24.5441]
[1755924889976,0.03405056,203.84,203.82,4.9076]
[1755924894077,0.03405056,203.84,203.82,3.3376]
[1755924894276,0.03405056,203.84,203.82,2.4076]
[1755924894579,0.03405056,203.84,203.79,4.9084]
[1755924894774,2.84405056,203.84,203.8,1.85295609]
[1755924894974,2.84405056,203.84,203.79,4.9084]
[1755924895676,0.03405056,203.84,203.8,4.9081]
[1755924896179,0.03405056,203.84,203.77,24.5454]
[1755924896378,0.03405056,203.84,203.78,6.17990376]
[1755924896679,0.03405056,203.84,203.79,6.17990376]
[1755924896874,0.03405056,203.84,203.77,24.5454]
[1755924897070,0.03405056,203.84,203.78,6.18115283]
[1755924897375,0.03405056,203.84,203.79,6.18115283]
[1755924897570,0.03405056,203.84,203.81,4.9079]
[1755924897769,2.81,203.83,203.81,4.9079]
[1755924898875,2.81,203.83,203.68,3.90693323]
[1755924899085,9.0653481,203.83,203.69,9.8745828]
[1755924899281,9.0653481,203.83,203.7,9.8745828]
[1755924899481,9.0653481,203.83,203.71,6.18941816]
[1755924899681,9.0653481,203.83,203.72,6.18941816]
[1755924899981,2.81,203.81,203.73,6.18941816]
[1755924900182,6.2553481,203.79,203.74,1.85623365]
[1755924900378,7.7198,203.74,203.65,147.49960891]
[1755924900579,2.81,203.71,203.65,147.49960891]
[1755924901288,2.81,203.69,203.65,147.49960891]
[1755924902183,0.03108899,203.7,203.65,147.34960891]
[1755924902383,2.81,203.69,203.65,147.34960891]
[1755924902787,2.81,203.69,203.65,147.01960891]
[1755924902983,0.03108899,203.7,203.66,4.9117]
[1755924903184,0.03108899,203.7,203.66,24.5587]
[1755924903379,0.03108899,203.7,203.67,4.45966643]
[1755924903575,0.03108899,203.7,203.69,2.61]
[1755924903780,0.03108899,203.7,203.69,7.06966643]
[1755924904986,0.03108899,203.7,203.69,0.59]
[1755924905283,0.03108899,203.7,203.69,5.03961273]
[1755924905987,0.03108899,203.7,203.65,147.01960891]
[1755924906884,0.03108899,203.7,203.66,7.05509994]
[1755924907083,0.03108899,203.7,203.67,4.9114]
[1755924907486,0.03108899,203.7,203.68,2.61]
[1755924907689,0.03108899,203.7,203.67,4.9114]
[1755924907882,0.03108899,203.7,203.66,2.61]
[1755924908279,0.03108899,203.7,203.65,147.01960891]
[1755924908486,0.03108899,203.7,203.67,2.61]
[1755924908681,0.03108899,203.7,203.68,2.61]
[1755924909283,0.03108899,203.7,203.58,2.61]
[1755924909284,2.61,203.69,203.58,2.61]
[1755924909482,2.61,203.69,203.58,0.11]
[1755924909686,4.9114,203.68,203.58,0.11]
[1755924909885,24.5533,203.71,203.53,143.5947]
[1755924910083,0.03267532,203.66,203.54,4.44180022]
[1755924910283,0.03267532,203.66,203.55,4.44180022]
[1755924910488,0.03267532,203.66,203.54,24.5733]
[1755924910689,2.61,203.67,203.55,4.43629271]
[1755924910893,2.61,203.67,203.59,4.9134]
[1755924911190,0.03426568,203.62,203.59,4.9134]
[1755924912086,0.03426568,203.62,203.61,4.9129]
[1755924912290,0.03426568,203.62,203.61,6.1029]
[1755924913790,0.03426568,203.62,203.61,1.19]
[1755924913986,0.03426568,203.62,203.53,25.7644]
[1755924914296,0.03426568,203.62,203.55,1.19]
[1755924915785,0.03426568,203.62,203.56,138.58]
[1755924915991,0.03426568,203.62,203.56,143.4939]
[1755924916491,0.03426568,203.62,203.59,1.19]
[1755924916792,0.03426568,203.62,203.56,143.4939]
[1755924916993,0.03426568,203.62,203.56,143.4339]
[1755924918491,0.03426568,203.62,203.59,1.19]
[1755924918691,0.03426568,203.62,203.56,1.19]
[1755924918887,0.03426568,203.62,203.56,139.65]
[1755924920092,0.03426568,203.62,203.58,4.9136]
[1755924920998,0.03426568,203.62,203.6,4.9131]
[1755924922491,0.03426568,203.62,203.6,2.4131]
[1755924923896,2.61,203.76,203.66,4.9116]
[1755924924499,2.61,203.76,203.64,143.2322]
[1755924924698,2.61,203.76,203.64,138.32]
[1755924925095,2.61,203.76,203.66,4.9115]
[1755924925496,7.5195,203.76,203.64,143.2322]
[1755924925698,7.5195,203.76,203.64,4.9122]
[1755924925898,2.61,203.75,203.58,24.5683]
[1755924926098,2.61,203.75,203.59,136.35]
[1755924926399,2.61,203.75,203.59,135.72]
[1755924927190,4.9103,203.72,203.62,4.9125]
[1755924927400,2.61,203.71,203.62,4.9125]
[1755924929098,2.61,203.71,203.59,135.72]
[1755924929099,7.5207,203.71,203.59,4.9132]
[1755924929303,2.61,203.71,203.59,2.4132]
[1755924930200,2.61,203.71,203.58,138.1]
[1755924930500,2.61,203.71,203.59,6.26389116]
[1755924931002,2.61,203.71,203.64,4.912]
[1755924931202,2.61,203.71,203.6,162.5857]
[1755924931497,10.90464014,203.91,203.6,162.5857]
[1755924931498,2.61,203.75,203.71,4.9105]
[1755924931803,2.61,203.75,203.65,24.5598]
[1755924931998,6.26389116,203.79,203.65,24.5598]
[1755924932309,2.61,203.78,203.68,4.201]
[1755924933397,7.5189,203.78,203.69,4.9108]
[1755924934700,4.9093,203.76,203.67,4.9115]
[1755924935098,6.26389116,203.75,203.59,24.5672]
[1755924935298,4.9103,203.72,203.63,4.9122]
[1755924935604,2.75,203.74,203.6,137.9]
[1755924935797,2.75,203.74,203.61,4.32705261]
[1755924936104,2.75,203.74,203.6,137.9]
[1755924936303,2.75,203.74,203.61,4.32720312]
[1755924936508,2.75,203.74,203.65,4.9118]
[1755924937400,7.66,203.74,203.65,4.9118]
[1755924942703,6.26389116,203.7,203.55,24.5719]
[1755924943007,2.75,203.69,203.56,10.51077323]
[1755924943207,2.75,203.69,203.57,10.51077323]
[1755924943408,2.75,203.69,203.58,10.51077323]
[1755924943709,2.75,203.69,203.54,137.62]
[1755924943710,2.75,203.73,203.59,10.51077323]
[1755924943906,2.75,203.73,203.6,10.51077323]
[1755924944210,2.75,203.73,203.61,10.51077323]
[1755924944407,2.75,203.73,203.62,10.51077323]
[1755924944608,2.75,203.73,203.63,4.35195971]
[1755924944905,2.75,203.73,203.64,4.35969836]
[1755924945111,4.9105,203.72,203.62,4.9125]
[1755924945304,4.9105,203.72,203.63,4.36007755]
[1755924945505,4.9105,203.72,203.62,4.9125]
[1755924945705,4.9105,203.72,203.63,4.35970703]
[1755924945906,4.9105,203.72,203.63,4.9122]
[1755924947312,2.75,203.73,203.65,4.9119]
[1755924947611,2.75,203.73,203.59,24.5668]
[1755924947813,2.75,203.73,203.6,10.55818248]
[1755924948013,2.75,203.73,203.61,4.35975421]
[1755924948211,2.75,203.73,203.62,4.35975421]
[1755924948413,2.75,203.73,203.63,4.35975421]
[1755924948613,4.9105,203.72,203.63,4.9124]
[1755924950213,2.75,203.73,203.64,4.36173577]
[1755924950516,2.75,203.7,203.53,6.26389116]
[1755924950718,2.75,203.7,203.56,6.26389116]
[1755924950912,2.75,203.7,203.57,10.57183774]
[1755924951215,2.75,203.7,203.58,14.30421616]
[1755924951412,2.75,203.7,203.59,35.13843774]
[1755924951612,2.75,203.7,203.6,10.57183774]
[1755924951819,2.75,203.7,203.61,10.57183774]
[1755924952019,2.75,203.7,203.62,10.57183774]
[1755924952220,2.75,203.7,203.63,4.36539652]
[1755924952423,2.75,203.74,203.64,4.36539652]
[1755924952622,2.75,203.74,203.65,4.36539652]
[1755924952825,2.75,203.74,203.66,4.36539652]
[1755924953025,2.75,203.74,203.59,24.5666]
[1755924953225,2.75,203.74,203.6,10.64894629]
[1755924953428,2.75,203.74,203.61,10.64894629]
[1755924953623,2.75,203.74,203.62,4.44487654]
[1755924953820,2.75,203.71,203.63,4.44487654]
[1755924954121,2.75,203.7,203.56,24.5707]
[1755924954322,2.75,203.7,203.57,10.65887183]
[1755924954627,2.75,203.7,203.58,10.65887183]
[1755924954921,2.75,203.7,203.59,10.65918983]
[1755924955125,2.75,203.7,203.6,4.44886189]
[1755924955323,2.75,203.7,203.61,4.44886189]
[1755924955624,2.75,203.7,203.56,24.5707]
[1755924955826,2.75,203.7,203.57,10.66141544]
[1755924956024,4.9112,203.69,203.6,4.9129]
[1755924956425,2.75,203.7,203.61,4.45000321]
[1755924956627,2.75,203.7,203.62,4.45000321]
[1755924956828,2.75,203.7,203.56,24.5707]
[1755924957027,2.75,203.7,203.57,11.00012208]
[1755924957229,2.75,203.7,203.58,11.00012208]
[1755924957427,2.75,203.7,203.59,9.17476074]
[1755924957629,2.75,203.7,203.6,9.17476074]
[1755924957823,2.75,203.7,203.61,4.45110644]
[1755924958018,2.75,203.67,203.6,4.913]
[1755924958224,2.75,203.67,203.61,4.4512364]
[1755924958424,2.75,203.67,203.54,24.573]
[1755924958628,2.75,203.67,203.55,11.00225029]
[1755924958932,32.65380701,203.71,203.56,11.00225029]
[1755924958933,2.75,203.65,203.56,11.00225029]
[1755924959230,2.75,203.65,203.57,9.17651972]
[1755924959424,2.75,203.65,203.53,24.5743]
[1755924959622,2.75,203.65,203.54,11.00270528]
[1755924959822,2.75,203.65,203.55,11.00227403]
[1755924960023,11.17509116,203.68,203.58,4.9136]
[1755924960230,2.75,203.69,203.59,4.45216484]
[1755924960425,4.9115,203.68,203.6,4.45020124]
[1755924960625,4.9115,203.68,203.58,4.9134]
[1755924960830,4.9115,203.68,203.59,4.45038687]
[1755924961030,2.75,203.69,203.61,4.9129]
[1755924961831,2.75,203.69,203.59,4.9134]
[1755924962031,2.75,203.69,203.6,4.46714084]
[1755924962227,2.75,203.69,203.59,4.9134]
[1755924962433,2.75,203.69,203.6,4.46671439]
[1755924962631,2.75,203.69,203.59,4.9134]
[1755924962828,2.75,203.69,203.6,4.4667283]
[1755924963137,4.9113,203.68,203.57,4.9139]
[1755924963334,4.9113,203.68,203.58,9.03929304]
[1755924963535,2.61,203.67,203.59,4.46649472]
[1755924963738,2.61,203.67,203.57,4.9139]
[1755924963927,7.5217,203.67,203.58,9.03931085]
[1755924964132,2.61,203.67,203.54,4.9144]
[1755924964329,2.61,203.67,203.55,4.57400274]
[1755924964533,2.61,203.67,203.56,9.04184484]
[1755924964739,7.522,203.65,203.57,4.4678421]
[1755924965032,7.522,203.65,203.58,4.4678421]
[1755924965238,7.522,203.65,203.52,24.5755]
[1755924965437,7.522,203.65,203.53,10.86494188]
[1755924965637,7.522,203.65,203.54,10.86494188]
[1755924965838,7.522,203.65,203.55,10.86494188]
[1755924966038,7.522,203.65,203.56,9.04003529]
[1755924966238,7.522,203.65,203.57,9.03931339]
[1755924966441,7.522,203.65,203.58,4.46687244]
[1755924966740,7.522,203.65,203.59,4.46607918]
[1755924966936,4.9124,203.64,203.5,25.43121538]
[1755924967136,4.9124,203.64,203.51,10.86377193]
[1755924967438,4.9124,203.64,203.52,10.86377193]
[1755924967639,2.61,203.69,203.54,24.5732]
[1755924967836,2.61,203.69,203.55,10.86330953]
[1755924968039,2.61,203.69,203.56,9.03681107]
[1755924968241,2.61,203.69,203.57,10.86056679]
[1755924968442,2.61,203.69,203.58,9.03681107]
[1755924968642,4.9115,203.68,203.59,4.46639114]
[1755924968837,6.26389116,203.68,203.56,4.9139]
[1755924969042,2.61,203.67,203.57,9.03566134]
[1755924969243,2.61,203.67,203.58,4.46470479]
[1755924969444,2.61,203.67,203.59,4.46470479]
[1755924969744,2.61,203.67,203.54,30.83689116]
[1755924969945,2.61,203.67,203.55,10.85927514]
[1755924970136,2.61,203.73,203.56,10.85927514]
[1755924970340,8.87389116,203.73,203.57,10.85927514]
[1755924970546,2.61,203.72,203.58,10.85927514]
[1755924970745,2.61,203.72,203.6,24.5658]
[1755924970939,10.71040701,203.81,203.64,6.26389116]
[1755924971139,2.61,203.81,203.67,6.26389116]
[1755924971339,2.61,203.81,203.68,10.8546056]
[1755924971646,2.61,203.81,203.72,4.91]
[1755924971941,6.26389116,203.86,203.76,4.9092]
[1755924972243,6.26389116,203.86,203.77,4.67140614]
[1755924972244,2.61,203.86,203.77,4.67140614]
[1755924972546,2.61,203.86,203.78,4.67058245]
[1755924972746,2.61,203.86,203.79,4.67058245]
[1755924972945,2.61,203.86,203.77,4.9089]
[1755924973147,2.61,203.86,203.78,4.66373891]
[1755924973341,2.61,203.86,203.67,136.66]
[1755924973342,2.61,203.86,203.69,24.5551]
[1755924973551,8.87389116,203.86,203.7,17.29377221]
[1755924973844,8.87389116,203.86,203.71,11.02988105]
[1755924974047,8.87389116,203.86,203.72,9.21502424]
[1755924974345,8.87389116,203.86,203.73,4.66590578]
[1755924974646,2.61,203.86,203.74,10.92979694]
[1755924974846,8.87389116,203.9,203.75,9.21019389]
[1755924975042,2.61,203.9,203.77,6.26389116]
[1755924975347,136.62,203.99,203.78,29.21010578]
[1755924975546,2.61,203.97,203.8,6.26389116]
[1755924975748,8.87389116,204.02,203.83,6.26389116]
[1755924975948,8.87389116,204.02,203.88,6.26389116]
[1755924976151,8.87389116,204.02,203.89,4.66590578]
[1755924976447,2.61,204.02,203.9,4.66590578]
[1755924976641,2.61,204.02,203.91,4.66590578]
[1755924976845,2.61,204.02,203.88,6.26389116]
[1755924977147,2.61,204.02,203.89,4.63463743]
[1755924977349,2.61,204.02,203.9,4.63463743]
[1755924977547,2.61,204.02,203.91,9.54023743]
[1755924977747,2.61,204.02,203.91,4.9056]
[1755924979954,2.61,204.02,203.93,4.9052]
[1755924980647,2.61,204.06,203.93,4.9052]
[1755924982252,27.1138,204.12,203.95,4.9045]
[1755924982457,7.5108,204.12,203.94,24.525]
[1755924982654,2.61,204.12,203.95,4.5794605]
[1755924982853,2.61,204.12,203.99,4.9036]
[1755924984656,2.61,204.12,203.96,4.9044]
[1755924985158,2.61,204.12,203.97,4.56051167]
[1755924985357,2.61,204.12,203.96,4.9044]
[1755924985854,2.61,204.12,203.97,4.55935178]
[1755924986061,2.61,204.12,203.98,4.55866022]
[1755924986358,2.61,204.12,203.95,24.5237]
[1755924986558,2.61,204.12,203.96,4.55426484]
[1755924986865,2.61,204.12,204.0,4.9034]
[1755924990064,2.61,204.12,203.97,4.9042]
[1755924990358,4.9009,204.11,203.97,4.9042]
[1755924990564,2.61,204.1,203.98,4.54196566]
[1755924990761,2.61,204.1,203.99,4.54196566]
[1755924991064,2.61,204.1,203.99,4.9037]
[1755924992756,2.61,204.1,204.01,4.9032]
[1755924992964,2.61,204.1,203.93,33.96504998]
[1755924993163,2.61,204.1,203.94,4.53783162]
[1755924993368,7.5112,204.1,203.97,4.9042]
[1755924993767,7.5112,204.1,203.98,4.53672532]
[1755924994069,7.5112,204.1,203.99,4.9038]
[1755924994262,2.67,204.17,203.98,9.43894998]
[1755924994470,2.67,204.17,203.99,4.53060601]
[1755924994662,2.67,204.17,204.01,24.5167]
[1755924994866,2.67,204.17,204.02,4.53060601]
[1755924995168,2.67,204.17,204.03,4.53060601]
[1755924995368,2.67,204.17,204.04,4.53060601]
[1755924995671,2.67,204.17,204.05,4.53060601]
[1755924995969,2.67,204.17,204.09,4.9014]
[1755924996171,2.67,204.17,204.05,24.5116]
[1755924996370,2.67,204.23,204.06,4.52508242]
[1755924996663,2.67,204.23,204.07,4.52508242]
[1755924996868,2.67,204.23,204.08,4.52228824]
[1755924997071,2.67,204.23,204.09,4.52228824]
[1755924997271,2.67,204.23,204.1,4.52228824]
[1755924997566,2.67,204.23,204.11,4.52228824]
[1755924997764,2.67,204.23,204.12,4.52228824]
[1755924998069,2.67,204.23,204.09,24.5064]
[1755924998269,2.67,204.23,204.1,4.51478629]
[1755924998470,2.67,204.23,204.14,4.9001]
[1755924998666,2.67,204.23,204.11,24.5045]
[1755924998872,2.67,204.23,204.12,4.51336329]
[1755924999068,2.67,204.23,204.13,4.51336329]
[1755924999370,2.67,204.23,204.14,4.51336329]
[1755924999668,2.67,204.23,204.16,4.8997]
[1755925000067,2.67,204.31,204.17,4.50800115]
[1755925000370,2.67,204.31,204.18,4.50800115]
[1755925000562,2.67,204.31,204.19,24.4944]
[1755925000761,2.67,204.37,204.2,4.50056525]
[1755925001066,2.67,204.37,204.16,298.94484171]
[1755925001067,2.67,204.37,204.18,135.44]
[1755925001374,2.67,204.36,204.22,4.8981]